bitfinex-derivatives/quotes_ETHF0:USTF0_20240925
["timestamp","ask_amount","ask_price","bid_price","bid_amount"]
[1727236751433,3.5872,2648.1,2648.0,0.1083]
[1727236751632,3.5872,2648.1,2648.0,1.1983]
[1727236751871,6.56008031,2648.1,2648.0,1.1983]
[1727236755140,3.35228031,2648.1,2648.0,1.1983]
[1727236755746,3.35228031,2648.1,2648.0,1.57592]
[1727236755942,0.3794,2648.1,2648.0,1.57592]
[1727236756741,0.3794,2648.1,2648.0,1.46762]
[1727236757340,3.36608031,2648.2,2648.0,1.46762]
[1727236757539,0.3932,2648.2,2648.1,1.09]
[1727236758543,0.3932,2648.2,2648.1,1.46761]
[1727236758752,0.3932,2648.2,2648.1,1.09]
[1727236759851,3.9598,2648.4,2648.1,1.09]
[1727236759852,3.5788,2648.4,2648.1,1.09]
[1727236760148,3.5788,2648.4,2648.3,1.09]
[1727236760645,0.371,2648.4,2648.3,1.09]
[1727236761750,0.371,2648.4,2648.3,1.46758]
[1727236764856,0.3831,2648.5,2648.4,0.37756]
[1727236765850,0.3831,2648.5,2648.3,1.86897]
[1727236766047,3.35598031,2648.5,2648.3,1.86897]
[1727236767058,3.35598031,2648.5,2648.3,1.09]
[1727236767356,2.97288031,2648.4,2648.2,2.24508]
[1727236767559,0.3971,2648.3,2648.2,2.24508]
[1727236767748,0.3971,2648.3,2648.2,1.8675]
[1727236768158,0.3971,2648.3,2648.2,2.24509]
[1727236770057,0.3971,2648.3,2648.2,1.86779]
[1727236770249,0.3971,2648.3,2648.2,1.4902]
[1727236772662,0.3971,2648.3,2648.0,0.1083]
[1727236772881,0.3764,2648.2,2648.1,1.09]
[1727236783673,0.3764,2648.2,2648.0,0.37761]
[1727236783971,0.3764,2648.2,2648.1,1.09]
[1727236784870,0.3764,2648.2,2648.1,1.4623]
[1727236785572,0.3764,2648.2,2648.1,1.83991]
[1727236785770,0.3764,2648.2,2648.1,1.4623]
[1727236785965,0.3764,2648.2,2648.1,1.83991]
[1727236786173,0.3764,2648.2,2648.1,1.4623]
[1727236786681,0.3764,2648.2,2648.1,1.83991]
[1727236787472,0.3764,2648.2,2648.1,1.4623]
[1727236788176,0.3764,2648.2,2648.1,1.83991]
[1727236796388,0.3764,2648.2,2647.9,0.98925755]
[1727236796678,0.3764,2648.2,2648.1,0.37761]
[1727236797183,0.3764,2648.2,2648.1,0.77851]
[1727236797674,0.3764,2648.2,2648.1,0.88681]
[1727236798078,0.3764,2648.2,2648.1,1.28571]
[1727236801474,3.6049,2648.3,2648.2,0.37759]
[1727236801674,3.6049,2648.3,2648.2,1.46759]
[1727236803271,3.2078,2648.3,2648.2,1.46759]
[1727236803477,3.2078,2648.3,2648.2,0.37759]
[1727236803789,3.2078,2648.3,2648.2,1.46759]
[1727236804786,4.0076,2648.3,2648.2,1.46759]
[1727236811489,7.7836,2648.3,2648.2,0.37759]
[1727236811683,7.7836,2648.3,2648.1,0.3776]
[1727236811876,4.0076,2648.3,2648.1,0.3776]
[1727236812085,4.0076,2648.3,2648.1,1.36685755]
[1727236812386,4.0076,2648.3,2648.2,0.37759]
[1727236812580,4.0076,2648.3,2648.1,0.98925755]
[1727236812779,4.0076,2648.3,2648.2,1.09]
[1727236813176,4.0076,2648.3,2648.2,1.46759]
[1727236814091,4.0076,2648.3,2648.2,1.83559]
[1727236818591,4.38518,2648.3,2648.0,2.45686755]
[1727236818788,4.0076,2648.3,2648.1,0.3776]
[1727236818993,4.0076,2648.3,2648.0,1.09]
[1727236819289,4.0076,2648.3,2648.1,0.3776]
[1727236819492,4.38518,2648.3,2648.0,1.46761]
[1727236820193,1.4676,2648.2,2647.9,1.36688755]
[1727236820383,0.3883,2648.1,2648.0,0.37762]
[1727236820579,0.3883,2648.1,2648.0,1.46762]
[1727236826313,3.36118031,2648.1,2648.0,1.46762]
[1727236828697,3.36118031,2648.1,2648.0,1.09]
[1727236828904,0.3883,2648.1,2648.0,1.09]
[1727236829198,3.36118031,2648.1,2648.0,1.09]
[1727236829801,3.36118031,2648.1,2647.8,1.09]
[1727236829996,0.3782,2648.0,2647.9,0.37763]
[1727236830195,0.7824,2648.0,2647.9,0.37763]
[1727236833289,0.7824,2648.0,2647.9,1.46763]
[1727236841216,0.7824,2648.0,2647.9,1.09]
[1727236841394,0.7824,2648.0,2647.9,1.46763]
[1727236843194,0.7824,2648.0,2647.8,1.09]
[1727236843396,3.2078,2647.9,2647.8,1.09]
[1727236843798,3.2078,2647.9,2647.7,41.5931]
[1727236844007,3.2078,2647.9,2647.7,0.76865]
[1727236844203,3.58543,2647.9,2647.7,0.391]
[1727236844403,3.2078,2647.9,2647.7,0.76866]
[1727236845603,1.09,2647.8,2647.6,40.8]
[1727236845798,1.09,2647.8,2647.3,0.352]
[1727236845799,3.34728031,2647.7,2647.3,0.352]
[1727236846008,4.2978,2647.5,2647.3,0.37771]
[1727236846201,4.2978,2647.5,2647.3,40.8]
[1727236846401,4.2978,2647.5,2647.2,0.4029]
[1727236846402,1.4715,2647.4,2647.2,0.4029]
[1727236846597,0.4024,2647.3,2646.9,1.10957]
[1727236846827,4.2978,2647.1,2646.9,41.1798]
[1727236847307,0.3815,2647.0,2646.9,40.8]
[1727236848598,0.3815,2647.0,2646.7,1.1361]
[1727236849009,4.2978,2646.8,2646.7,0.3785]
[1727236849211,4.2978,2646.8,2646.5,0.37783]
[1727236849507,0.3841,2646.7,2646.6,0.37782]
[1727236851203,0.3841,2646.7,2646.5,0.75013]
[1727236851913,0.3841,2646.7,2646.5,0.3723]
[1727236852210,0.3841,2646.7,2646.5,0.75013]
[1727236853106,0.3841,2646.7,2646.6,40.8]
[1727236853607,0.3841,2646.7,2646.5,0.75013]
[1727236853807,0.3841,2646.7,2646.5,0.3723]
[1727236854012,0.3841,2646.6,2646.5,0.75013]
[1727236854219,0.3841,2646.6,2646.5,41.55013]
[1727236859017,1.4741,2646.6,2646.5,41.1723]
[1727236859201,1.4741,2646.6,2646.2,0.7318]
[1727236859202,5.63033,2646.6,2646.2,0.7318]
[1727236859406,1.09,2646.3,2646.2,0.3798]
[1727236859707,1.09,2646.3,2646.2,40.8]
[1727236860114,1.09,2646.3,2646.1,1.35545755]
[1727236860317,0.7747,2646.2,2646.1,1.35545755]
[1727236860619,5.0725,2646.2,2646.1,0.98925755]
[1727236860806,5.45038,2646.2,2646.1,0.98925755]
[1727236861410,15.22958,2646.2,2646.1,0.98925755]
[1727236862913,0.37789,2646.1,2645.6,0.352]
[1727236863108,3.2078,2645.9,2645.4,1.09]
[1727236863416,4.2978,2645.9,2645.6,0.37796]
[1727236865505,3.2078,2645.9,2645.5,1.12687]
[1727236865707,1.09,2645.8,2645.5,0.7489]
[1727236865912,1.4605,2645.8,2645.5,0.7489]
[1727236866116,1.4605,2645.8,2645.5,1.12687]
[1727236866414,1.4605,2645.8,2645.5,0.7489]
[1727236866618,0.369,2645.7,2645.5,1.12688]
[1727236866809,0.369,2645.7,2645.5,0.7489]
[1727236867010,0.369,2645.7,2645.6,0.37796]
[1727236867251,3.2078,2645.9,2645.6,1.09]
[1727236867509,0.3759,2646.2,2646.1,0.37789]
[1727236867510,3.2078,2646.2,2646.1,0.37789]
[1727236867718,4.109,2646.6,2646.4,0.37784]
[1727236867916,11.7502,2646.8,2646.5,42.2585]
[1727236867917,4.6742,2646.8,2646.5,42.2585]
[1727236868418,3.6082,2646.8,2646.6,1.46781]
[1727236868617,3.6082,2646.8,2646.5,41.54633]
[1727236873638,3.6082,2646.8,2646.5,0.74633]
[1727236874824,3.6082,2646.8,2646.5,0.3685]
[1727236875012,3.6082,2646.8,2646.5,0.74633]
[1727236875721,6.346,2646.8,2646.5,0.3685]
[1727236877224,5.9682,2646.8,2646.5,0.3685]
[1727236877424,6.34599,2646.8,2646.5,0.3685]
[1727236878124,5.9682,2646.8,2646.5,0.3685]
[1727236879029,6.346,2646.8,2646.5,0.3685]
[1727236881425,5.9682,2646.8,2646.5,0.3685]
[1727236881823,6.34599,2646.8,2646.5,0.3685]
[1727236882522,0.37781,2646.7,2646.5,0.3685]
[1727236884830,0.37781,2646.7,2646.2,0.3753]
[1727236885028,0.37781,2646.7,2646.2,1.14457]
[1727236885534,0.37784,2646.5,2646.2,0.7667]
[1727236885834,3.2078,2646.5,2646.2,1.14457]
[1727236886222,3.5973,2646.5,2646.2,1.14457]
[1727236886429,3.5973,2646.5,2646.2,0.3914]
[1727236886430,3.97513,2646.5,2646.2,0.3914]
[1727236886629,0.3737,2646.4,2646.2,0.76928]
[1727236887129,0.3737,2646.4,2646.2,0.3914]
[1727236887327,0.4019,2646.3,2646.2,0.3914]
[1727236887524,0.4019,2646.3,2646.2,0.76928]
[1727236889228,0.4019,2646.3,2646.2,1.16798]
[1727236893338,1.4919,2646.3,2646.0,0.3779]
[1727236893533,1.4919,2646.3,2646.0,0.7739]
[1727236893933,1.8683,2646.3,2646.0,0.7739]
[1727236894637,2.24616,2646.3,2646.0,0.7739]
[1727236894938,2.24616,2646.3,2646.0,0.396]
[1727236895139,1.09,2646.1,2645.6,0.98925755]
[1727236895336,1.09,2645.9,2645.8,0.37793]
[1727236895935,1.4879,2645.9,2645.8,0.37793]
[1727236896239,1.4879,2645.9,2645.7,0.4049]
[1727236896240,1.4879,2645.9,2645.7,0.78284]
[1727236897338,1.09,2645.8,2645.4,0.98925755]
[1727236897541,1.09,2645.8,2645.3,2.87695755]
[1727236897736,3.6057,2645.9,2645.8,0.37793]
[1727236898134,3.6057,2645.9,2645.7,0.37794]
[1727236898331,4.6957,2645.9,2645.7,0.37794]
[1727236901838,4.6957,2645.9,2645.3,1.78695755]
[1727236902036,1.09,2645.7,2645.6,0.37795]
[1727236903541,1.09,2645.7,2645.3,0.7977]
[1727236903740,1.09,2645.5,2645.4,0.37799]
[1727236904335,0.3843,2645.6,2645.5,0.37798]
[1727236906432,0.3843,2645.6,2645.4,0.37798]
[1727236906636,0.3843,2645.6,2645.5,0.37798]
[1727236908152,0.3843,2645.6,2645.4,0.37798]
[1727236908340,0.3843,2645.6,2645.5,0.37798]
[1727236909046,3.6057,2645.9,2645.7,0.37794]
[1727236909349,3.6057,2645.9,2645.3,0.7977]
[1727236909350,4.36813,2645.9,2645.6,0.37796]
[1727236909567,2.36,2645.8,2645.6,0.37796]
[1727236911751,4.36812,2645.9,2645.6,0.37796]
[1727236912647,3.9902,2645.9,2645.6,0.37796]
[1727236913065,4.36812,2645.9,2645.6,0.37796]
[1727236913742,3.9902,2645.9,2645.6,0.37796]
[1727236914544,4.36812,2645.9,2645.6,0.37796]
[1727236916044,3.9902,2645.9,2645.6,0.37796]
[1727236917241,3.9902,2645.9,2645.3,0.7977]
[1727236917451,3.9902,2645.9,2645.6,0.37795]
[1727236919149,4.36813,2645.9,2645.6,0.37795]
[1727236919957,3.9902,2645.9,2645.6,0.37795]
[1727236922266,4.36812,2645.9,2645.6,0.37795]
[1727236923751,4.36812,2645.9,2645.4,40.8]
[1727236923944,4.36812,2645.9,2645.5,0.37798]
[1727236924348,1.09,2645.6,2645.3,1.17569]
[1727236924549,0.7732,2645.5,2645.4,0.37799]
[1727236931348,0.7732,2645.5,2645.3,0.78289]
[1727236931553,1.09,2645.4,2645.3,0.37799]
[1727236932069,1.09,2645.4,2645.1,0.98925755]
[1727236932258,1.09,2645.2,2645.1,1.36728755]
[1727236932860,1.09,2645.2,2645.1,0.37803]
[1727236933050,1.09,2645.2,2645.1,1.36728755]
[1727236934253,1.09,2645.2,2645.1,0.37803]
[1727236935662,1.09,2645.2,2645.0,1.39255755]
[1727236935663,3.981,2645.5,2645.3,0.378]
[1727236935849,1.09,2645.4,2645.2,0.37801]
[1727236937053,1.09,2645.4,2645.3,0.37801]
[1727236937761,1.09,2645.4,2645.2,0.37801]
[1727236940051,1.09,2645.4,2645.2,0.37802]
[1727236943765,1.09,2645.4,2645.1,0.98925755]
[1727236943965,1.09,2645.2,2645.1,1.36728755]
[1727236944457,1.09,2645.2,2645.1,2.71954185]
[1727236944862,1.09,2645.2,2645.1,1.36728755]
[1727236945568,1.09,2645.2,2645.1,2.71956527]
[1727236945759,1.09,2645.2,2645.1,1.36728755]
[1727236946364,1.09,2645.2,2645.1,0.98925755]
[1727236947254,1.09,2645.2,2645.1,1.36728755]
[1727236953368,3.2078,2645.7,2645.1,11.81589]
[1727236953572,4.4828,2645.9,2645.8,0.37793]
[1727236953761,0.3738,2645.9,2645.8,1.36680551]
[1727236953960,0.3716,2646.1,2646.0,0.37791]
[1727236954163,1.8495,2646.2,2645.8,0.98835918]
[1727236954363,1.09,2646.0,2645.8,0.98835918]
[1727236954571,1.09,2645.9,2645.8,0.37793]
[1727236954759,1.09,2645.9,2645.7,1.36629918]
[1727236954961,0.3738,2645.8,2645.7,0.98835918]
[1727236955162,0.3738,2645.8,2645.6,2.11901918]
[1727236955367,1.09,2645.7,2645.6,2.11901918]
[1727236955572,1.09,2645.7,2645.6,1.74105918]
[1727236956075,1.09,2645.7,2645.6,2.11901918]
[1727236957274,1.09,2645.7,2645.6,0.98835918]
[1727236957579,1.4861,2645.7,2645.4,1.36633918]
[1727236957766,1.09,2645.5,2645.4,1.36633918]
[1727236961081,1.09,2645.5,2645.4,2.71775618]
[1727236961281,1.09,2645.5,2645.4,1.36633918]
[1727236967975,1.09,2645.5,2645.4,2.71759038]
[1727236968584,1.09,2645.5,2645.4,1.36633918]
[1727236968980,1.09,2645.5,2645.4,2.71762799]
[1727236969175,0.3961,2645.7,2645.6,0.37796]
[1727236969383,1.4861,2645.7,2645.6,0.37796]
[1727236970082,0.3738,2645.8,2645.7,0.37795]
[1727236970279,0.3738,2645.8,2645.7,0.76965]
[1727236972497,1.09,2645.9,2645.8,0.37793]
[1727236974285,1.09,2645.9,2645.7,0.76964]
[1727236974483,0.7655,2645.8,2645.7,0.76964]
[1727236975684,0.7655,2645.8,2645.5,1.39305918]
[1727236975885,1.09,2645.6,2645.5,2.13753918]
[1727236977587,1.09,2645.6,2645.5,2.49916855]
[1727236977994,1.8555,2645.8,2645.7,0.37795]
[1727236979191,0.7655,2645.8,2645.7,0.37795]
[1727236979422,3.5867,2646.2,2646.0,0.3779]
[1727236979593,1.8791,2646.1,2646.0,0.3779]
[1727236982195,1.8791,2646.1,2646.0,0.37791]
[1727236983892,2.06980792,2646.1,2646.0,0.37791]
[1727236986198,2.06980792,2646.1,2645.9,0.37791]
[1727236986397,2.06980792,2646.1,2646.0,0.37791]
[1727236989607,2.06980792,2646.1,2645.9,0.37791]
[1727236990704,3.2078,2646.0,2645.5,1.75895566]
[1727236990904,3.2078,2646.0,2645.7,0.37794]
[1727236991298,3.58571,2646.0,2645.7,0.37794]
[1727236993703,3.2078,2646.0,2645.7,0.37794]
[1727236996505,1.09,2645.8,2645.7,0.37794]
[1727236996695,1.09,2645.8,2645.5,1.75895566]
[1727236996901,1.09,2645.6,2645.5,1.73223566]
[1727236997411,1.09,2645.6,2645.5,3.08358557]
[1727236997599,1.09,2645.6,2645.5,1.73223566]
[1727236998405,1.09,2645.6,2645.5,3.08384472]
[1727236998709,1.09,2645.6,2645.5,1.73223566]
[1727236998917,1.09,2645.6,2645.5,3.08389865]
[1727236999240,1.09,2645.6,2645.5,2.09614299]
[1727236999595,1.09,2645.6,2645.5,3.58002932]
[1727236999795,1.09,2645.6,2645.5,3.08546718]
[1727237000306,1.09,2645.6,2645.5,3.08550027]
[1727237000610,1.09,2645.6,2645.5,3.08554289]
[1727237000813,1.09,2645.6,2645.5,0.74448]
[1727237001109,1.09,2645.6,2645.5,3.08609884]
[1727237001409,1.09,2645.6,2645.5,3.08608434]
[1727237001607,1.09,2645.6,2645.5,3.08608462]
[1727237001814,1.09,2645.6,2645.5,2.09666694]
[1727237002316,1.09,2645.6,2645.5,3.08605099]
[1727237002611,1.09,2645.6,2645.5,3.58055327]
[1727237002797,1.09,2645.6,2645.5,2.09666694]
[1727237003006,1.09,2645.6,2645.5,3.08606313]
[1727237003512,1.09,2645.6,2645.5,3.08607401]
[1727237004710,1.09,2645.6,2645.5,2.09666694]
[1727237004918,1.09,2645.6,2645.5,3.08614065]
[1727237005104,1.09,2645.6,2645.5,3.58055327]
[1727237005707,1.09,2645.6,2645.5,3.08619887]
[1727237005903,1.09,2645.6,2645.5,3.58055327]
[1727237006712,1.09,2645.6,2645.5,2.09666694]
[1727237008107,1.09,2645.6,2645.5,1.35218694]
[1727237008411,4.67577,2645.6,2645.3,0.98960417]
[1727237008612,1.09,2645.5,2645.3,0.98960417]
[1727237008806,1.09,2645.5,2645.2,0.98960417]
[1727237008807,0.3774,2645.4,2645.2,0.98960417]
[1727237009003,1.4806,2645.3,2645.2,1.36762417]
[1727237009537,1.4806,2645.3,2645.2,0.37802]
[1727237009910,1.4806,2645.3,2645.2,1.36762417]
[1727237010306,1.09,2645.3,2645.2,0.37802]
[1727237010506,1.09,2645.3,2645.2,2.71992636]
[1727237010709,1.09,2645.3,2645.2,3.11252636]
[1727237011011,1.4851,2645.4,2645.3,0.37801]
[1727237011310,1.4851,2645.4,2645.3,0.77271]
[1727237011612,4.6854,2645.6,2645.4,0.37798]
[1727237011821,5.0809,2645.6,2645.4,0.37798]
[1727237013634,5.0809,2645.6,2645.2,1.87648633]
[1727237013635,5.0809,2645.6,2645.2,0.98950296]
[1727237013803,1.09,2645.4,2645.3,0.378]
[1727237014009,1.09,2645.4,2645.2,1.36751296]
[1727237014208,0.3903,2645.3,2645.2,0.37801]
[1727237014907,0.3903,2645.3,2645.1,0.98950296]
[1727237015108,1.4889,2645.2,2645.0,1.36754296]
[1727237015512,1.4889,2645.2,2645.0,0.98950296]
[1727237015809,1.86692,2645.2,2644.9,1.76916296]
[1727237016014,1.09,2645.0,2644.9,1.76916296]
[1727237016413,1.09,2645.0,2644.9,0.77966]
[1727237016714,1.09,2645.0,2644.9,0.4016]
[1727237016939,1.09,2645.0,2644.7,1.73588296]
[1727237017217,1.09,2644.8,2644.7,1.35780296]
[1727237017412,1.09,2644.8,2644.7,0.37809]
[1727237017613,1.4658,2644.8,2644.6,1.76010296]
[1727237017817,1.4658,2644.8,2644.6,0.7706]
[1727237019707,1.4658,2644.8,2644.6,0.3925]
[1727237019920,1.4658,2644.8,2644.6,0.7706]
[1727237020219,1.4658,2644.8,2644.7,0.37809]
[1727237020410,1.4658,2644.8,2644.6,0.7706]
[1727237021020,1.4658,2644.8,2644.6,0.3925]
[1727237021214,1.4658,2644.8,2644.7,0.37809]
[1727237027727,1.84388,2644.8,2644.6,0.3925]
[1727237027926,1.4658,2644.8,2644.6,0.7706]
[1727237028734,1.4658,2644.8,2644.7,0.37809]
[1727237029027,1.4658,2644.8,2644.6,0.7706]
[1727237030531,1.4658,2644.8,2644.6,0.3925]
[1727237030827,1.4658,2644.8,2644.5,0.37811]
[1727237031028,1.09,2644.6,2644.5,0.37811]
[1727237032121,1.09,2644.6,2644.5,0.77531]
[1727237035326,1.09,2644.6,2644.4,0.3851]
[1727237035640,0.3774,2644.5,2644.4,0.3851]
[1727237035930,0.3774,2644.5,2644.4,0.76323]
[1727237036124,0.3774,2644.5,2644.4,0.3851]
[1727237036530,0.3774,2644.5,2644.4,0.76323]
[1727237038726,0.3774,2644.5,2644.4,0.3851]
[1727237038935,0.3774,2644.5,2644.4,0.76323]
[1727237043332,0.3774,2644.5,2644.4,0.3851]
[1727237043525,0.3774,2644.5,2644.4,0.76323]
[1727237043730,0.3774,2644.5,2644.4,0.37813]
[1727237046133,3.2078,2644.7,2644.2,0.3909]
[1727237046342,1.09,2644.6,2644.5,0.37811]
[1727237050844,1.09,2644.6,2644.5,1.15561]
[1727237057449,1.09,2644.6,2644.5,2.14511296]
[1727237058154,1.09,2644.6,2644.5,1.15561]
[1727237058656,1.09,2644.6,2644.5,2.14511296]
[1727237059252,1.09,2644.6,2644.5,1.15561]
[1727237059477,1.09,2644.6,2644.5,2.14511296]
[1727237060048,1.09,2644.6,2644.5,3.49787916]
[1727237060450,1.09,2644.6,2644.5,3.99226253]
[1727237061655,3.2958,2645.3,2644.7,0.94523]
[1727237061854,0.3708,2645.1,2645.0,0.37805]
[1727237062057,1.4608,2645.1,2645.0,0.37805]
[1727237063853,1.09,2645.1,2645.0,1.36832951]
[1727237064046,1.09,2645.1,2645.0,2.72133542]
[1727237064247,1.09,2645.1,2645.0,1.36832951]
[1727237064757,1.09,2645.1,2645.0,0.37805]
[1727237068163,1.09,2645.1,2645.0,1.36832951]
[1727237068351,1.09,2645.1,2645.0,0.37805]
[1727237071157,1.4795,2645.1,2645.0,0.37805]
[1727237081168,1.4795,2645.1,2644.7,0.99027951]
[1727237081365,1.09,2644.8,2644.7,1.36836951]
[1727237085466,1.09,2644.8,2644.7,0.37809]
[1727237085667,1.09,2644.8,2644.6,1.36837951]
[1727237085868,0.3967,2644.7,2644.6,0.3781]
[1727237090872,0.3967,2644.7,2644.6,0.4864]
[1727237101286,1.09,2644.8,2644.6,0.4864]
[1727237101287,1.09,2644.8,2644.7,0.37809]
[1727237101976,0.3833,2645.0,2644.9,0.37806]
[1727237102285,1.4733,2645.0,2644.9,0.37806]
[1727237102782,0.3833,2645.0,2644.9,0.37806]
[1727237103087,1.4733,2645.0,2644.9,0.37806]
[1727237103477,1.4733,2645.0,2644.9,0.74836]
[1727237114795,5.2541,2645.0,2644.9,0.37806]
[1727237114995,5.2541,2645.0,2644.8,0.37807]
[1727237115303,1.4812,2644.9,2644.8,0.37807]
[1727237116094,1.4812,2644.9,2644.8,1.36834951]
[1727237116488,1.4812,2644.9,2644.8,0.37807]
[1727237116795,1.4812,2644.9,2644.8,1.36834951]
[1727237117701,1.4812,2644.9,2644.8,0.37807]
[1727237117893,1.4812,2644.9,2644.8,1.36834951]
[1727237118795,1.4812,2644.9,2644.8,0.37807]
[1727237120303,1.4812,2644.9,2644.8,1.36834951]
[1727237120494,1.4812,2644.9,2644.8,0.37807]
[1727237123301,1.4812,2644.9,2644.8,1.36834951]
[1727237123599,1.4812,2644.9,2644.8,0.37807]
[1727237124103,1.4812,2644.9,2644.8,1.36834951]
[1727237126198,1.4812,2644.9,2644.8,0.37807]
[1727237126909,0.3912,2644.9,2644.8,0.37807]
[1727237127110,3.2078,2645.2,2644.9,0.94516]
[1727237127404,0.7701,2645.5,2645.4,0.37799]
[1727237128606,3.5999,2645.9,2645.7,0.37794]
[1727237128792,0.7788,2645.8,2645.7,0.37795]
[1727237129109,0.7788,2645.8,2645.3,1.34245076]
[1727237129299,1.09,2645.4,2645.3,1.36846076]
[1727237130400,1.09,2645.4,2645.3,0.37801]
[1727237138612,1.482,2645.4,2645.3,0.37801]
[1727237144417,1.482,2645.4,2645.3,0.48631]
[1727237147511,1.863,2645.4,2645.3,0.48631]
[1727237154121,5.643,2645.4,2645.3,0.1083]
[1727237154308,6.02099,2645.4,2645.3,0.1083]
[1727237154509,5.643,2645.4,2645.3,0.1083]
[1727237154714,5.643,2645.4,2645.3,0.48631]
[1727237154937,5.643,2645.4,2645.3,0.1083]
[1727237155223,5.643,2645.4,2645.3,0.48631]
[1727237156111,1.863,2645.4,2645.3,0.48631]
[1727237157315,1.863,2645.4,2645.3,0.37801]
[1727237165835,1.863,2645.4,2645.0,1.74355076]
[1727237166032,1.09,2645.1,2645.0,1.39155076]
[1727237166222,1.09,2645.1,2645.0,1.76960076]
[1727237166531,1.09,2645.2,2645.1,0.37803]
[1727237167422,1.09,2645.2,2645.1,1.36848076]
[1727237167623,1.09,2645.2,2645.1,0.37803]
[1727237171420,1.09,2645.2,2645.1,1.36848076]
[1727237175533,1.4627,2645.2,2645.1,0.37803]
[1727237175930,1.4627,2645.2,2645.0,1.36849076]
[1727237176129,5.9168,2645.1,2644.7,1.48541927]
[1727237176329,1.09,2644.8,2644.6,0.3781]
[1727237176533,1.09,2644.7,2644.6,0.3781]
[1727237176740,1.09,2644.7,2644.5,0.37811]
[1727237177736,1.09,2644.7,2644.6,0.37811]
[1727237178134,4.8716,2644.7,2644.5,0.37811]
[1727237178445,1.09,2644.6,2644.4,0.3761]
[1727237178741,1.09,2644.6,2644.5,0.37812]
[1727237185147,3.2078,2645.0,2644.4,0.3761]
[1727237185345,1.09,2644.6,2644.4,0.3761]
[1727237185545,1.09,2644.6,2644.5,0.37812]
[1727237190657,1.8657,2644.6,2644.5,0.37812]
[1727237197553,1.8657,2644.6,2644.5,0.48642]
[1727237204163,1.09,2644.6,2644.5,0.48642]
[1727237204361,3.2078,2644.8,2644.7,0.37809]
[1727237204657,1.09,2644.8,2644.7,0.37809]
[1727237205058,1.09,2644.8,2644.7,4.92179]
[1727237205558,1.09,2644.8,2644.7,1.14099]
[1727237207250,1.09,2644.8,2644.7,0.75189]
[1727237207454,1.09,2644.8,2644.7,0.37809]
[1727237207455,1.4616,2644.8,2644.7,0.37809]
[1727237207965,1.4616,2644.8,2644.6,0.3866]
[1727237208154,1.09,2644.7,2644.6,0.76471]
[1727237211567,1.4556,2644.7,2644.5,0.37811]
[1727237211767,1.09,2644.6,2644.5,0.37811]
[1727237219166,1.09,2644.6,2644.4,0.37812]
[1727237219371,1.489,2644.5,2644.4,0.37812]
[1727237221471,1.489,2644.5,2644.4,1.73000842]
[1727237221767,1.489,2644.5,2644.4,0.37812]
[1727237221992,1.489,2644.5,2644.4,1.72998037]
[1727237222278,1.489,2644.5,2644.4,1.72999037]
[1727237223672,1.489,2644.5,2644.4,0.37813]
[1727237223868,5.2706,2644.5,2644.4,1.73007393]
[1727237224074,5.2706,2644.5,2644.1,1.83741927]
[1727237224270,5.2706,2644.5,2644.4,0.3935]
[1727237224271,0.399,2644.5,2644.4,0.3935]
[1727237224613,0.77712,2644.5,2644.4,0.3935]
[1727237225375,1.86712,2644.5,2644.4,0.3935]
[1727237226280,1.489,2644.5,2644.4,0.3935]
[1727237226471,1.86712,2644.5,2644.4,0.3935]
[1727237231876,0.37813,2644.4,2644.2,1.13776]
[1727237232077,1.09,2644.3,2644.2,1.51576]
[1727237233091,1.46815,2644.3,2644.2,0.7462]
[1727237233380,1.09,2644.3,2644.2,0.7462]
[1727237233581,1.46815,2644.3,2644.2,0.7462]
[1727237235084,1.09,2644.3,2644.2,0.7462]
[1727237236687,1.46815,2644.3,2644.2,0.7462]
[1727237237279,1.09,2644.3,2644.2,0.7462]
[1727237237579,1.46815,2644.3,2644.2,0.7462]
[1727237237980,1.09,2644.3,2644.2,0.7462]
[1727237238284,1.46815,2644.3,2644.2,0.7462]
[1727237238781,1.09,2644.3,2644.2,0.7462]
[1727237238987,1.46815,2644.3,2644.2,0.7462]
[1727237239186,1.09,2644.3,2644.2,0.7462]
[1727237243976,3.2078,2644.4,2644.2,0.7462]
[1727237244187,5.14213,2645.0,2644.6,0.37811]
[1727237244188,10.37768031,2645.0,2644.6,0.37811]
[1727237244388,10.37768031,2645.0,2644.7,0.3771]
[1727237244389,0.37809,2644.8,2644.7,0.3771]
[1727237244580,0.3781,2644.7,2644.4,0.37813]
[1727237244794,0.3781,2644.7,2644.4,0.75523]
[1727237245118,0.4014,2644.6,2644.5,0.37812]
[1727237245289,1.4914,2644.6,2644.5,0.37812]
[1727237248787,1.4914,2644.6,2644.4,0.75522]
[1727237249185,1.8921,2644.6,2644.4,0.75522]
[1727237250288,1.8921,2644.6,2644.5,0.37812]
[1727237252081,1.4914,2644.6,2644.5,0.37812]
[1727237252283,1.09,2644.6,2644.5,0.37812]
[1727237259295,1.09,2644.6,2644.5,1.72900669]
[1727237259492,4.2978,2644.8,2644.5,6.07779669]
[1727237259683,1.09,2644.8,2644.6,0.3717]
[1727237259890,1.09,2644.8,2644.7,0.78039]
[1727237260196,3.2078,2645.1,2645.0,0.37805]
[1727237260388,4.67583,2645.1,2644.7,41.5827]
[1727237260592,1.09,2644.8,2644.7,41.96079]